fUSD/lending_fUSD_20240101
["ID","MTS","AMOUNT","RATE_DAILY","PERIOD"]
[309766132,1704106239348,-156.22,0.0003723,2]
[309766133,1704106239361,-500.0,0.00037239,2]
[309766134,1704106239371,-500.0,0.00037239,2]
[309766135,1704106239381,-627.14832324,0.00037239,2]
[309766136,1704106239393,-500.0,0.00037239,2]
[309766137,1704106239403,-4699.05,0.00037239,5]
[309766138,1704106239413,-500.0,0.00037239,2]
[309766139,1704106239423,-836.65,0.00037239,2]
[309766140,1704106239434,-1267.44,0.00037239,2]
[309766141,1704106239445,-616.33050178,0.00037239,2]
[309766142,1704106239455,-500.0,0.00037239,2]
[309766143,1704106239465,-500.0,0.00037239,2]
[309766144,1704106239474,-430.84740552,0.00037239,2]
[309766145,1704106239486,-3216.24,0.00037239,2]
[309766146,1704106239495,-500.0,0.00037239,2]
[309766147,1704106239504,-500.0,0.00037239,2]
[309766148,1704106239514,-500.0,0.00037239,2]
[309766149,1704106239523,-235.71604834,0.00037239,2]
[309766150,1704106239533,-500.0,0.00037239,2]
[309766151,1704106239542,-588.91,0.00037239,2]
[309766152,1704106239552,-500.0,0.00037239,2]
[309766153,1704106239563,-500.0,0.00037239,2]
[309766154,1704106239573,-508.7,0.00037239,2]
[309766155,1704106239584,-500.0,0.00037239,2]
[309766156,1704106239594,-495.46425922,0.00037239,2]
[309766157,1704106239603,-500.0,0.00037239,2]
[309766158,1704106239613,-500.0,0.00037239,2]
[309766159,1704106239623,-500.0,0.00037239,2]
[309766160,1704106239634,-307.00474941,0.00037239,2]
[309766161,1704106239644,-500.0,0.00037239,2]
[309766162,1704106239654,-4707.2455665,0.0003724,9]
[309766163,1704106239664,-50000.0,0.0003724,15]
[309766164,1704106239674,-33336.23672587,0.0003724,9]
[309766165,1704106239683,-12066.42544395,0.0003724,9]
[309766166,1704106239693,-150.0,0.00037254,2]
[309766167,1704106239702,-2162.44154824,0.00037255,2]
[309766168,1704106239712,-156.55,0.00037259,2]
[309766169,1704106239721,-323.69084001,0.00037273,2]
[309766170,1704106239730,-433.81,0.00037288,2]
[309766171,1704106239740,-5927.9453,0.00037289,2]
[309766172,1704106239749,-333.33333,0.00037298,4]
[309766173,1704106239758,-2162.44154824,0.00037301,2]
[309766174,1704106239767,-2162.44154824,0.00037347,2]
[309766175,1704106239776,-214.71483923,0.00037373,9]
[309766176,1704106239785,-211.13553109,0.00037373,9]
[309766177,1704106239794,-304.83136566,0.00037373,9]
[309766178,1704106239804,-269.66005119,0.00037373,9]
[309766179,1704106239815,-1000.0,0.00037373,10]
[309766180,1704106239824,-2146.84712183,0.00037373,9]
[309766181,1704106239833,-201.22053398,0.00037373,9]
[309766182,1704106239843,-894.98052343,0.00037373,9]
[309766183,1704106239852,-175.05683043,0.00037373,9]
[309766184,1704106239862,-1287.25123415,0.00037373,9]
[309766185,1704106239872,-500.0,0.00037389,2]
[309766186,1704106239882,-500.0,0.00037389,2]
[309766187,1704106239892,-522.42025024,0.00037389,2]
[309766188,1704106239902,-495.51983083,0.00037389,2]
[309766189,1704106239912,-500.0,0.00037389,2]
[309766190,1704106239921,-634.02325296,0.00037389,2]
[309766191,1704106239930,-500.0,0.00037389,2]
[309766192,1704106239939,-5000.0,0.0003739,10]
[309766193,1704106239949,-203.72174697,0.0003739,4]
[309766194,1704106239958,-664.22508438,0.0003739,4]
[309766195,1704106239968,-156.00013657,0.0003739,2]
[309766196,1704106239978,-2162.44154824,0.00037393,2]
[309766197,1704106239988,-333.33333,0.00037398,4]
[309766198,1704106239998,-500.0,0.00037412,2]
[309766199,1704106240007,-500.0,0.00037412,2]
[309766200,1704106240017,-500.0,0.00037412,2]
[309766201,1704106240026,-500.0,0.00037412,2]
[309766202,1704106240036,-500.0,0.00037412,2]
[309766203,1704106240045,-500.0,0.00037412,2]
[309766204,1704106240054,-608.10063563,0.00037412,2]
[309766205,1704106240065,-2162.44154824,0.00037439,2]
[309766206,1704106240074,-165.7459989,0.00037443,8]
[309766207,1704106240084,-433.81,0.00037478,2]
[309766208,1704106240094,-2162.44154824,0.00037486,2]
[309766209,1704106240103,-333.33333,0.00037498,4]
[309766210,1704106240113,-300.0,0.000375,13]
[309766211,1704106240121,-500.0,0.000375,5]
[309766212,1704106240130,-500.0,0.00037513,2]
[309766213,1704106240139,-500.0,0.00037513,2]
[309766214,1704106240148,-500.0,0.00037513,2]
[309766215,1704106240158,-4699.05,0.00037513,5]
[309766216,1704106240166,-500.0,0.00037513,2]
[309766217,1704106240175,-836.65,0.00037513,2]
[309766218,1704106240184,-1267.44,0.00037513,2]
[309766219,1704106240194,-500.0,0.00037513,2]
[309766220,1704106240203,-3216.24,0.00037513,2]
[309766221,1704106240212,-588.91,0.00037513,2]
[309766222,1704106240220,-500.0,0.00037513,2]
[309766223,1704106240229,-500.0,0.00037513,2]
[309766224,1704106240238,-353.67757466,0.00037513,2]
[309766225,1704106240247,-500.0,0.00037513,2]
[309766226,1704106240256,-500.0,0.00037513,2]
[309766227,1704106240265,-2162.44154824,0.00037532,2]
[309766228,1704106240274,-195.33079476,0.00037535,2]
[309766229,1704106240283,-150.779,0.00037542,7]
[309766230,1704106240292,-150.0,0.00037542,7]
[309766231,1704106240301,-5410.86167699,0.0003755,10]
[309766232,1704106240310,-10821.723354,0.00037551,10]
[309766233,1704106240319,-500.0,0.0003756,2]
[309766234,1704106240328,-560.16933571,0.0003756,2]
[309766235,1704106240337,-500.0,0.0003756,2]
[309766236,1704106240346,-586.19,0.0003756,2]
[309766237,1704106240355,-500.0,0.0003756,2]
[309766238,1704106240363,-500.0,0.0003756,2]
[309766239,1704106240373,-430.00085046,0.0003756,2]
[309766240,1704106240382,-500.0,0.0003756,2]
[309766241,1704106240391,-609.23161565,0.0003756,2]
[309766242,1704106240400,-500.0,0.0003756,2]
[309766243,1704106240409,-3714.33,0.0003756,5]
[309766244,1704106240418,-500.0,0.0003756,2]
[309766245,1704106240427,-562.99730024,0.0003756,2]
[309766246,1704106240437,-214.9076092,0.0003756,2]
[309766247,1704106240446,-159.57141932,0.0003756,2]
[309766248,1704106240455,-221.42423166,0.0003756,2]
[309766249,1704106240464,-500.0,0.0003756,2]
[309766250,1704106240473,-598.63,0.0003756,2]
[309766251,1704106240483,-500.0,0.0003756,2]
[309766252,1704106240492,-500.0,0.0003756,2]
[309766253,1704106240501,-500.0,0.0003756,2]
[309766254,1704106240511,-500.0,0.0003756,2]
[309766255,1704106240520,-500.0,0.0003756,2]
[309766256,1704106240530,-615.03347605,0.0003756,2]
[309766257,1704106240539,-500.0,0.0003756,2]
[309766258,1704106240548,-500.0,0.0003756,2]
[309766259,1704106240558,-25115.10352785,0.00037561,4]
[309766260,1704106240568,-2162.44154824,0.00037578,2]
[309766262,1704106240577,-333.33333,0.00037598,4]
[309766263,1704106240587,-700.0,0.000376,13]
[309766264,1704106240597,-2162.44154824,0.00037624,2]
[309766266,1704106240608,-5410.86167699,0.00037653,10]
[309766267,1704106240617,-500.0,0.00037663,2]
[309766268,1704106240627,-500.0,0.00037663,2]
[309766269,1704106240637,-500.0,0.00037663,2]
[309766270,1704106240646,-1815.66,0.00037663,2]
[309766271,1704106240655,-433.81,0.00037668,2]
[309766272,1704106240664,-2162.44154824,0.0003767,2]
[309766273,1704106240674,-500.0,0.00037686,2]
[309766274,1704106240683,-500.0,0.00037686,2]
[309766275,1704106240692,-225.7379,0.00037692,2]
[309766276,1704106240705,-333.33333,0.00037698,4]
[309766277,1704106240714,-320.69453811,0.00037698,2]
[309766278,1704106240723,-1100.0,0.000377,13]
[309766279,1704106240732,-2162.44154824,0.00037716,2]
[309766280,1704106240741,-5410.86167699,0.00037722,10]
[309766281,1704106240750,-5410.86167699,0.00037731,10]
[309766282,1704106240759,-32465.1700619,0.00037732,10]
[309766283,1704106240768,-156.22,0.00037732,2]
[309766284,1704106240777,-1000.0,0.00037741,2]
[309766285,1704106240786,-500.0,0.00037741,2]
[309766286,1704106240795,-254.05,0.00037741,2]
[309766287,1704106240804,-500.0,0.00037741,2]
[309766288,1704106240814,-500.0,0.00037741,2]
[309766289,1704106240823,-500.0,0.00037741,2]
[309766290,1704106240832,-500.0,0.00037741,2]
[309766291,1704106240841,-500.0,0.00037741,2]
[309766292,1704106240850,-500.0,0.00037741,2]
[309766293,1704106240859,-500.0,0.00037741,2]
[309766294,1704106240868,-472.85402995,0.00037741,2]
[309766295,1704106240877,-500.0,0.00037741,2]
[309766296,1704106240885,-500.0,0.00037741,2]
[309766297,1704106240894,-602.7786,0.00037742,2]
[309766298,1704106240903,-2085.5071,0.00037742,2]
[309766299,1704106240912,-64460.3257,0.00037742,2]
[309766300,1704106240922,-320.69453811,0.00037749,2]
[309766301,1704106240931,-2162.44154824,0.00037762,2]
[309766302,1704106240940,-5410.86167699,0.0003778,10]
[309766303,1704106240949,-500.0,0.00037787,2]
[309766304,1704106240958,-500.0,0.00037787,2]
[309766305,1704106240966,-500.0,0.00037787,2]
[309766306,1704106240976,-4699.05,0.00037787,5]
[309766307,1704106240985,-500.0,0.00037787,2]
[309766308,1704106240994,-836.65,0.00037787,2]
[309766309,1704106241003,-1267.44,0.00037787,2]
[309766310,1704106241012,-500.0,0.00037787,2]
[309766311,1704106241021,-3216.24,0.00037787,2]
[309766312,1704106241030,-588.91,0.00037787,2]
[309766313,1704106241039,-500.0,0.00037787,2]
[309766314,1704106241049,-500.0,0.00037787,2]
[309766315,1704106241059,-500.0,0.00037787,2]
[309766316,1704106241067,-500.0,0.00037787,2]
[309766317,1704106241077,-5410.86167699,0.0003779,10]
[309766318,1704106241086,-333.33333,0.00037798,4]
[309766319,1704106241095,-320.69453811,0.00037799,2]
[309766320,1704106241104,-7971.550336,0.000378,2]
[309766321,1704106241113,-1500.0,0.000378,13]
[309766322,1704106241122,-2162.44154824,0.00037808,2]
[309766323,1704106241131,-164.26973171,0.00037812,2]
[309766324,1704106241141,-271.0,0.00037816,5]
[309766325,1704106241150,-5000.0,0.00037822,2]
[309766326,1704106241159,-16232.585031,0.00037822,10]
[309766327,1704106241168,-5410.86167699,0.00037824,10]
[309766328,1704106241177,-154.55751066,0.00037831,2]
[309766329,1704106241186,-27054.3083849,0.00037832,10]
[309766330,1704106241195,-500.0,0.00037834,2]
[309766331,1704106241204,-500.0,0.00037834,2]
[309766332,1704106241214,-586.19,0.00037834,2]
[309766333,1704106241223,-500.0,0.00037834,2]
[309766334,1704106241232,-3714.33,0.00037834,5]
[309766335,1704106241240,-500.0,0.00037834,2]
[309766336,1704106241249,-598.63,0.00037834,2]
[309766337,1704106241258,-500.0,0.00037834,2]
[309766338,1704106241267,-500.0,0.00037834,2]
[309766339,1704106241276,-500.0,0.00037834,2]
[309766340,1704106241285,-500.0,0.00037834,2]
[309766341,1704106241294,-500.0,0.00037834,2]
[309766342,1704106241303,-15106.2777,0.00037842,2]
[309766343,1704106241313,-1000.0,0.00037842,2]
[309766344,1704106241322,-28888.6231,0.00037842,2]
[309766345,1704106241331,-8125.7931,0.00037842,2]
[309766346,1704106241341,-208.0,0.00037842,2]
[309766347,1704106241351,-320.69453811,0.0003785,2]
[309766348,1704106241360,-2162.44154824,0.00037854,2]
[309766349,1704106241369,-433.81,0.00037859,2]
[309766350,1704106241378,-235.34965232,0.00037875,2]
[309766351,1704106241387,-5410.86167699,0.00037879,10]
[309766352,1704106241397,-988.75108194,0.0003788,11]
[309766353,1704106241407,-5410.86167699,0.0003788,10]
[309766354,1704106241417,-5410.86167699,0.00037881,10]
[309766355,1704106241427,-10821.723354,0.00037889,10]
[309766356,1704106241437,-150.0,0.0003789,2]
[309766357,1704106241447,-32465.1700619,0.0003789,10]
[309766358,1704106241457,-156.22,0.0003789,2]
[309766359,1704106241466,-10821.723354,0.00037891,10]
[309766360,1704106241476,-333.33333,0.00037898,4]
[309766361,1704106241486,-151.77777,0.00037898,4]
[309766362,1704106241495,-156.22,0.00037898,2]
[309766363,1704106241509,-500.0,0.00037899,2]
[309766364,1704106241519,-500.0,0.00037899,2]
[309766365,1704106241528,-500.0,0.00037899,2]
[309766366,1704106241538,-333.58218688,0.00037899,2]
[309766367,1704106241547,-500.0,0.00037899,2]
[309766368,1704106241557,-500.0,0.00037899,2]
[309766369,1704106241567,-515.11,0.00037899,2]
[309766370,1704106241576,-500.0,0.00037899,2]
[309766371,1704106241585,-500.0,0.00037899,2]
[309766372,1704106241594,-549.63,0.00037899,2]
[309766373,1704106241604,-500.0,0.00037899,2]
[309766374,1704106241613,-500.0,0.00037899,2]
[309766375,1704106241623,-500.0,0.00037899,2]
[309766376,1704106241633,-500.0,0.00037899,2]
[309766377,1704106241642,-55555.0,0.000379,3]
[309766378,1704106241651,-1900.0,0.000379,13]
[309766379,1704106241660,-320.69453811,0.000379,2]
[309766380,1704106241670,-957.3469754,0.000379,2]
[309766381,1704106241679,-1293.9847346,0.000379,2]
[309766382,1704106241689,-164933.65171,0.000379,3]
[309766383,1704106241698,-9852.67,0.000379,2]
[309766384,1704106241709,-239.39273691,0.000379,28]
[309766385,1704106241719,-160.85025318,0.000379,2]
[309766386,1704106241728,-2162.44154824,0.000379,2]
[309766387,1704106241738,-900.000001,0.000379,3]
[309766388,1704106241751,-14930.1345373,0.00037901,2]
[309766389,1704106241760,-37876.0317389,0.00037908,10]
[309766390,1704106241769,-82466.8258549,0.00037908,3]
[309766391,1704106241779,-82466.8258549,0.00037928,3]
[309766392,1704106241788,-156.22,0.00037932,2]
[309766393,1704106241798,-300.02,0.00037936,2]
[309766394,1704106241810,-3281.2780434,0.00037936,2]
[309766395,1704106241819,-857.17410256,0.00037937,2]
[309766396,1704106241829,-500.0,0.00037937,2]
[309766397,1704106241838,-500.0,0.00037937,2]
[309766398,1704106241847,-500.0,0.00037937,2]
[309766399,1704106241856,-1378.06002,0.00037937,2]
[309766400,1704106241865,-7783.00089638,0.00037938,4]
[309766401,1704106241874,-249.22410942,0.00037938,4]
[309766402,1704106241883,-24284.59610003,0.00037938,4]
[309766403,1704106241892,-2930.6806173,0.00037938,4]
[309766404,1704106241901,-18941.14569315,0.00037938,2]
[309766405,1704106241911,-2903.01609823,0.00037938,4]
[309766406,1704106241921,-245.65080941,0.00037938,4]
[309766407,1704106241931,-2271.11846024,0.00037939,4]
[309766408,1704106241940,-929.88008641,0.0003794,2]
[309766409,1704106241949,-5733.73601596,0.0003794,2]
[309766410,1704106241958,-301.08976093,0.0003794,2]
[309766411,1704106241968,-2065.28725803,0.0003794,2]
[309766412,1704106241977,-538.04245199,0.0003794,2]
[309766413,1704106242243,-2291.4371539,0.0003794,2]
[309766414,1704106242260,-9501.65686019,0.0003794,2]
[309766415,1704106242272,-1735.4834251,0.0003794,2]
[309766416,1704106242318,-318.75034731,0.0003794,2]
[309766417,1704106242338,-2241.0880573,0.0003794,2]
[309766418,1704106242350,-321.88887296,0.0003794,2]
[309766429,1704106243044,-1000.0,0.00037,7]
[309766433,1704106243053,-7785.78998907,0.0003794,2]
[309766451,1704106243150,-1476.89969251,0.0003794,2]
[309766455,1704106243163,-1143.07500054,0.0003794,2]
[309766458,1704106243174,-297.63572924,0.0003794,2]
[309766462,1704106243206,-1228.53770147,0.0003794,2]
[309766463,1704106243217,-500.0,0.0003794,2]
[309766464,1704106243240,-360.10524116,0.0003794,2]
[309766465,1704106243252,-1094.93749655,0.0003794,2]
[309766466,1704106243263,-454.7999994,0.0003794,2]
[309766468,1704106243479,-847.50054514,0.0003794,2]
[309766470,1704106243515,-444.52355762,0.0003794,2]
[309766472,1704106243539,-605.9691033,0.0003794,2]
[309766473,1704106243556,-98.40291902,0.0003794,2]
[309766474,1704106243566,-5557.74023399,0.0003794,4]
[309766475,1704106243579,-629.92316277,0.0003794,4]
[309766476,1704106243588,-93.33207046,0.0003794,4]
[309766480,1704106246086,-155.0,0.00036999,2]
[309766481,1704106246096,-243.0,0.00037598,5]
[309766482,1704106246105,-2135.46103287,0.00037936,2]
[309766483,1704106246114,-62.18485383,0.0003794,4]
[309766484,1704106246123,-761.25818852,0.0003794,4]
[309766485,1704106246133,-155.41699904,0.0003794,4]
[309766486,1704106246142,-2314.09295742,0.00037941,4]
[309766487,1704106246153,-8384.02520973,0.00037941,4]
[309766488,1704106246162,-3035.575892,0.00037942,2]
[309766489,1704106246171,-5656.17516817,0.00037942,2]
[309766490,1704106246182,-868.14001309,0.00037942,2]
[309766491,1704106246193,-13331.22526641,0.00037942,2]
[309766492,1704106246204,-2954.54052172,0.00037942,2]
[309766493,1704106246445,-0.51587867,0.00037942,2]
[309766494,1704106246458,-12684.68626895,0.00037942,2]
[309766495,1704106246470,-10895.22193319,0.00037942,2]
[309766496,1704106246479,-9758.8191332,0.00037942,2]
[309766497,1704106246489,-1320.90946812,0.00037942,2]
[309766498,1704106246498,-420.65342248,0.00037946,4]
[309766499,1704106246508,-200.74302626,0.00037947,4]
[309766500,1704106246518,-123.88634585,0.00037954,3]
[309766501,1704106246530,-15292.30398844,0.00037954,3]
[309766502,1704106246542,-21329.74609807,0.00037954,3]
[309766503,1704106246555,-664.57574091,0.00037954,3]
[309766504,1704106246581,-647.32312346,0.000368,7]
[309766508,1704106246733,-352.67687654,0.000368,7]
[309766509,1704106246743,-369.27727533,0.00037239,2]
[309766511,1704106246755,-130.72272467,0.00037239,2]
[309766512,1704106246765,-521.68727563,0.00037954,3]
[309766514,1704106246777,-1142.50000001,0.00037954,3]
[309766550,1704106270521,152.60932369,0.00023,2]
[309766551,1704106270551,54000.0,0.00023,2]
[309766552,1704106270579,999.22188964,0.00023,2]
[309766553,1704106270604,1467.18918125,0.00023,2]
[309766554,1704106270628,1467.18918125,0.00023,2]
[309766555,1704106270691,1467.18918125,0.00023,2]
[309766556,1704106270724,1467.18918125,0.00023,2]
[309766557,1704106270757,1467.18918125,0.00023,2]
[309766558,1704106270782,1467.18918125,0.00023,2]
[309766559,1704106270808,1467.18918125,0.00023,2]
[309766560,1704106270836,5930690.03895451,0.00023,2]
[309766563,1704106295036,4400.59578518,0.0002203,2]
[309766565,1704106327955,413.20008187,0.000199,3]
[309766567,1704106341287,1965.82610562,0.00039082,120]
[309766667,1704107101685,325.62,0.00022912,2]
[309766672,1704107143721,281.8424386,0.00022912,2]
[309766673,1704107150894,531.55305458,0.00022912,2]
[309766675,1704107157716,281.8424386,0.00022912,2]
[309766676,1704107161363,234.78997094,0.00022911,2]
[309766677,1704107162669,1042.36979142,0.00022911,2]
[309766678,1704107162891,531.55305458,0.00022912,2]
[309766679,1704107175104,155.97602597,0.00022912,2]
[309766681,1704107175711,281.8424386,0.00022912,2]
[309766685,1704107186923,549.99425546,0.00022912,2]
[309766686,1704107188360,359.05545102,0.00022912,2]
[309766687,1704107189716,235.52896874,0.00022912,2]
[309766688,1704107199103,155.0,0.00022912,2]
[309766691,1704107205289,33.03211149,0.00022912,2]
[309766692,1704107205312,5000.0,0.00022912,2]
[309766693,1704107205334,45382.68604765,0.00022912,2]
[309766694,1704107208353,155.0,0.00022912,2]
[309766695,1704107208388,297.14981601,0.00022912,2]
[309766698,1704107217087,165.46285681,0.00022912,2]
[309766700,1704107222097,1032.97536522,0.00022912,2]
[309766701,1704107223246,221.95124071,0.00022912,2]
[309766702,1704107226891,1847.42621652,0.00022911,2]
[309766703,1704107227062,155.0,0.00022911,2]
[309766704,1704107227342,164.2384182,0.00022911,2]
[309766705,1704107227729,281.38186068,0.00022912,2]
[309766706,1704107227843,1702.94991301,0.00022911,2]
[309766707,1704107228238,210.92031935,0.00022911,2]
[309766708,1704107234776,282.72095131,0.00022912,2]
[309766710,1704107240087,444.8976649,0.00022912,2]
[309766711,1704107240922,277.31671999,0.00022912,2]
[309766712,1704107243065,155.0,0.00021785,2]
[309766713,1704107246340,155.0,0.00022912,2]
[309766715,1704107260708,281.70751612,0.00022912,2]
[309766716,1704107263058,211.58072365,0.00021785,2]
[309766717,1704107276712,336.85800632,0.00022912,2]
[309766718,1704107276815,854.13879068,0.00022912,2]
[309766719,1704107279177,548.6565006,0.00022912,2]
[309766720,1704107287727,281.38186068,0.00022912,2]
[309766721,1704107293945,6061.0111636,0.00022912,2]
[309766722,1704107294814,854.13879068,0.00022912,2]
[309766723,1704107312812,854.13879068,0.00022912,2]
[309766724,1704107313732,281.60494778,0.00022912,2]
[309766725,1704107313946,6061.0111636,0.00022912,2]
[309766726,1704107315168,541.73151857,0.00022912,2]
[309766727,1704107329954,3238.74715793,0.00022912,2]
[309766728,1704107331742,281.8424386,0.00022912,2]
[309766729,1704107333172,657.72883657,0.00022912,2]
[309766730,1704107334840,230.4520452,0.00022912,2]
[309766731,1704107336372,500.0,0.00022912,2]
[309766732,1704107346408,245.32288846,0.00022912,2]
[309766733,1704107351151,519.78453749,0.00022912,2]
[309766734,1704107352378,500.0,0.00022912,2]
[309766735,1704107353734,280.74970005,0.00022912,2]
[309766736,1704107363162,308.86671653,0.00022912,2]
[309766737,1704107365088,-177.447162,0.00023193,2]
[309766738,1704107365109,-160.05593525,0.00023309,2]
[309766739,1704107365129,-534.45756851,0.00023309,2]
[309766758,1704107384379,500.0,0.00022912,2]
[309766759,1704107404394,500.0,0.00022912,2]
[309766780,1704107432287,-269.83626346,0.00023182,2]
[309766781,1704107432296,-220.26666446,0.00023182,2]
[309766782,1704107432306,-309.02030832,0.00023182,2]
[309766783,1704107432315,-210.92031935,0.00023182,2]
[309766784,1704107432325,-249.39139602,0.00023183,2]
[309766785,1704107432335,-155.0,0.00023183,2]
[309766786,1704107432344,-2605.2545687,0.00023183,2]
[309766787,1704107432353,-732.65059043,0.00023183,2]
[309766788,1704107432366,-1121.51262117,0.00023183,2]
[309766789,1704107432375,-1040.98279535,0.00023183,2]
[309766790,1704107432384,-155.0,0.00023183,2]
[309766791,1704107432395,-155.0,0.00023183,2]
[309766792,1704107432405,-937.43506641,0.00023183,2]
[309766793,1704107432415,-155.0,0.00023183,2]
[309766794,1704107432425,-1847.42621652,0.00023183,2]
[309766795,1704107432435,-336.35995625,0.00023183,2]
[309766796,1704107432445,-155.0,0.00023183,2]
[309766797,1704107432454,-1057.98752379,0.00023183,2]
[309766798,1704107432466,-2891.24890645,0.00023183,2]
[309766799,1704107432476,-541.22410251,0.00023183,2]
[309766800,1704107432486,-10655.87494515,0.00023183,2]
[309766801,1704107432497,-155.0,0.00023183,2]
[309766802,1704107432508,-1762.02403637,0.00023183,2]
[309766803,1704107432520,-155.0,0.00023183,2]
[309766804,1704107432530,-155.0,0.00023184,2]
[309766805,1704107432539,-2937.00836296,0.00023184,2]
[309766806,1704107432549,-217.17335148,0.00023184,2]
[309766807,1704107432559,-3180.04163262,0.00023184,2]
[309766808,1704107432568,-579.61035159,0.00023184,2]
[309766810,1704107432578,-278.31410173,0.00023184,2]
[309766812,1704107432587,-418.39942505,0.00023184,2]
[309766814,1704107432596,-1042.36979142,0.00023184,2]
[309766816,1704107432605,-527.27825206,0.00023184,2]
[309766818,1704107432617,-155.0,0.00023184,2]
[309766820,1704107432626,-155.0,0.00023184,2]
[309766822,1704107432635,-513.70005074,0.00023184,2]
[309766824,1704107432644,-155.0,0.00023184,2]
[309766826,1704107432654,-383.24855968,0.00023185,2]
[309766828,1704107432663,-435.31393712,0.00023185,2]
[309766830,1704107432672,-155.0,0.00023185,2]
[309766831,1704107432681,-693.16648475,0.00023185,2]
[309766832,1704107432690,-369.84974276,0.00023185,2]
[309766833,1704107432700,-156.99484246,0.00023185,2]
[309766834,1704107432709,-155.0,0.00023185,2]
[309766835,1704107432718,-16706.72309889,0.00023185,2]
[309766836,1704107432727,-155.0,0.00023185,2]
[309766837,1704107432737,-196.21358155,0.00023185,2]
[309766838,1704107432746,-756.20900926,0.00023185,2]
[309766839,1704107432755,-3316.86540737,0.00023185,2]
[309766840,1704107432764,-156.96140636,0.00023185,2]
[309766841,1704107432774,-393.68225135,0.00023185,2]
[309766842,1704107432783,-1189.94668809,0.00023185,2]
[309766843,1704107432792,-1252.56346846,0.00023185,2]
[309766844,1704107432802,-3920.35158571,0.00023185,2]
[309766845,1704107432811,-4609.49037417,0.00023185,2]
[309766846,1704107432821,-150.0,0.00023186,2]
[309766847,1704107432830,-301.20793522,0.00023186,2]
[309766848,1704107432839,-362.82049166,0.00023186,2]
[309766849,1704107432850,-2466.96629898,0.00023186,2]
[309766850,1704107432860,-155.0,0.00023186,2]
[309766851,1704107432869,-155.0,0.00023186,2]
[309766852,1704107432879,-155.0,0.00023186,2]
[309766853,1704107432888,-234.34924419,0.00023186,2]
[309766854,1704107432898,-241.61161094,0.00023186,2]
[309766855,1704107432907,-158.0787597,0.00023186,2]
[309766856,1704107432916,-400.0,0.00023186,2]
[309766857,1704107432926,-530.98245295,0.00023186,2]
[309766858,1704107432936,-25125.68128321,0.00023186,2]
[309766859,1704107432946,-155.0,0.00023187,2]
[309766860,1704107432955,-30594.47332111,0.00023187,2]
[309766861,1704107432967,-2000.23241676,0.00023187,2]
[309766862,1704107432979,-439.62247958,0.00023187,2]
[309766863,1704107433244,-362.1013399,0.00023187,2]
[309766864,1704107433261,-241.73154906,0.00023187,2]
[309766865,1704107433270,-492.83979718,0.00023187,2]
[309766866,1704107433279,-416.54397333,0.00023187,2]
[309766867,1704107433289,-403.22829154,0.00023187,2]
[309766868,1704107433298,-360.87448358,0.00023188,2]
[309766869,1704107433307,-5706.23288983,0.00023188,2]
[309766870,1704107433316,-251.99880636,0.00023188,2]
[309766871,1704107433326,-288.15054455,0.00023188,2]
[309766872,1704107433335,-234.78997094,0.00023188,2]
[309766873,1704107433344,-158.21861741,0.00023188,2]
[309766874,1704107433354,-155.0,0.00023188,2]
[309766875,1704107433363,-207.77198398,0.00023188,2]
[309766876,1704107433372,-280.14979655,0.00023188,2]
[309766877,1704107433381,-155.0,0.00023189,2]
[309766878,1704107433391,-650.14671211,0.00023189,2]
[309766879,1704107433400,-155.0,0.00023189,2]
[309766880,1704107433409,-155.0,0.00023189,2]
[309766881,1704107433418,-161.18888351,0.00023189,2]
[309766882,1704107433427,-155.0,0.00023189,2]
[309766883,1704107433436,-155.0,0.00023189,2]
[309766884,1704107433446,-5000.0,0.00023189,2]
[309766885,1704107433455,-10485.81593984,0.00023189,2]